{"text_format":"1","workbook":"xlsx","n_sheets":13,"sheets":["表紙","入力１","入力２","入力３","入力４","計画書","報告書","説明１","説明２","コード","作業表","計算表","計算表２"],"not_rendered":{"charts":0,"images":3,"macros":1,"external_links":0,"defined_names":10,"comments":0,"pivot_tables":0},"unopened":[],"bounds":{"document_bytes":16777216,"sheet_cells":100000,"rows_first":2000,"rows_last":500,"rows_between":2000,"halvings":0,"cell_chars":16384,"cell_head_chars":4096},"cells_cut":0,"cells_raw":0,"read":"whole","date_system":"1900"}

{"sheet":"表紙","index":0,"n_rows":30,"n_cols":22,"rows_kept":30,"cut":false,"hidden":false,"merged":[]}
[]
[]
[]
[]
[]
[]
[]
[]
[]
[]
[]
[]
[]
[]
[]
[]
[]
[]
[]
[null,null,null,"入力項目は",null,null,"　の部分です。"]
[]
[null,null,"　　　入力する項目は、①提出情報（提出者の氏名、住所、連絡先等）、②基本情報（使用している井戸に関する情報）、","入力する項目は、①提出情報（提出者の氏名、住所、連絡先等）、②基本情報（使用している井戸に関する情報）、"]
[null,null,null,"③合理化の方策（どんな合理化対策に取り組んでいるか）です。"]
[null,null,null,"それぞれのボタンを押して、入力画面に移動して下さい。"]
[null,null,"　　　それぞれのボタンを押して、入力画面に移動して下さい。","「合理化の方策」入力画面では、対策を実施している項目について、取組内容、数量、合理化量等を入力して下さい。"]
[null,null,"　　　「涵養の方策」入力画面では、対策を実施している項目について、取組内容、数量、涵養量等を入力して下さい。","「実施状況報告書」は、入力した計画の内容を引用することもできます。"]
[null,null,"　　　「実施状況報告書」は、入力した計画の内容を引用することもできます。","熊本市地下水保全条例に基づき、熊本市に「節水計画書」を提出している場合は、「地下水使用合理化計画書」の作成"]
[null,null,null,"は不要です。"]
[]
[null,null,null,null,null,null,null,null,null,null,null,null,null,null,null,null,null,null,null,null,null,"Ver.14-01-00"]

{"sheet":"入力１","index":1,"n_rows":15,"n_cols":33,"rows_kept":15,"cut":false,"hidden":false,"merged":[[6,8,6,31],[11,8,11,31],[3,2,4,32],[7,22,7,31],[8,2,9,7],[6,2,6,7],[7,8,7,9],[8,8,8,10],[9,8,9,9],[12,8,12,31],[10,8,10,31],[13,8,13,31],[7,2,7,7],[14,2,14,7],[8,14,8,16],[9,14,9,15],[9,11,9,12],[8,11,8,13],[10,2,13,3],[10,4,10,7],[11,4,11,7],[12,4,12,7],[13,4,13,7],[14,8,14,31],[8,17,9,31]]}
[]
[]
[]
[null,null,"①　提出情報入力"]
[]
[]
[null,null,"入力項目",null,null,null,null,null,"入力欄",null,null,null,null,null,null,null,null,null,null,null,null,null,null,null,null,null,null,null,null,null,null,null,"入力項目の説明（記入例）"]
[null,null,"提出様式",null,null,null,null,null,{"$f":"作業表!E5","v":"08"},null,null,null,null,null,null,null,null,null,null,null,null,null,null,null,null,null,null,null,null,null,null,null,"▼をクリックして該当する \"様式\" を選択してください。"]
[null,null,"提出年月日",null,null,null,null,null,"年",null,null,"月",null,null,"日",null,null,{"$f":"\"平成\"&I10&\"年\"&L10&\"月\"&O10&\"日\"","v":"平成26年4月1日"},null,null,null,null,null,null,null,null,null,null,null,null,null,null,"   を操作して日付を設定してください。\n(年、月、日の直接入力も可能です。)"]
[null,null,null,null,null,null,null,null,26,null,null,4,null,null,1]
[null,null,"提出者",null,"氏　　　名",null,null,null,null,null,null,null,null,null,null,null,null,null,null,null,null,null,null,null,null,null,null,null,null,null,null,null,"株式会社＊＊　熊本支社　支社長　＊＊＊＊　（代表者名まで）"]
[null,null,null,null,"郵便番号",null,null,null,null,null,null,null,null,null,null,null,null,null,null,null,null,null,null,null,null,null,null,null,null,null,null,null,"860-0000"]
[null,null,null,null,"住　　　所",null,null,null,null,null,null,null,null,null,null,null,null,null,null,null,null,null,null,null,null,null,null,null,null,null,null,null,"熊本市中央区＊＊＊＊\n上益城郡益城町＊＊＊＊"]
[null,null,null,null,"電話番号",null,null,null,null,null,null,null,null,null,null,null,null,null,null,null,null,null,null,null,null,null,null,null,null,null,null,null,"096-999-0000"]
[null,null,"担　当　者　名",null,null,null,null,null,null,null,null,null,null,null,null,null,null,null,null,null,null,null,null,null,null,null,null,null,null,null,null,null,"担当者名を入力してください。"]

{"sheet":"入力２","index":2,"n_rows":16,"n_cols":33,"rows_kept":16,"cut":false,"hidden":false,"merged":[[9,32,13,32],[9,2,13,6],[15,2,15,7],[14,8,14,12],[14,2,14,7],[15,8,15,9],[10,8,10,14],[9,8,9,14],[11,8,11,14],[14,13,14,14],[13,8,13,14],[12,8,12,14],[15,16,15,20],[15,21,15,31],[13,15,13,31],[14,15,14,31],[3,2,4,32],[6,2,6,7],[6,8,6,31],[7,8,7,31],[8,15,8,31],[8,13,8,14],[8,8,8,12],[9,15,9,31],[10,15,10,31],[11,15,11,31],[12,15,12,31],[7,2,7,7],[8,2,8,7]]}
[]
[]
[]
[null,null,"②　基本情報入力"]
[]
[]
[null,null,"入力項目",null,null,null,null,null,"入力欄",null,null,null,null,null,null,null,null,null,null,null,null,null,null,null,null,null,null,null,null,null,null,null,"入力項目の説明（記入例）"]
[null,null,"揚水設備設置場所",null,null,null,null,null,null,null,null,null,null,null,null,null,null,null,null,null,null,null,null,null,null,null,null,null,null,null,null,null,"「熊本市＊＊＊＊＊」　「下益城郡＊＊＊＊」\n事業所内に複数の井戸がある場合は、「･･･他」と入力してください。"]
[null,null,"年間採取量",null,null,null,null,null,null,null,null,null,null,"㎥",null,null,null,null,null,null,null,null,null,null,null,null,null,null,null,null,null,null,"整数で入力してください。"]
[null,null,"井戸番号",null,null,null,null,"①",null,null,null,null,null,null,null,null,null,null,null,null,null,null,null,null,null,null,null,null,null,null,null,null,"所有する井戸番号を入力してください。（５本まで入力可）\n\n（事業所内に複数の井戸がある場合は、届出井戸も含めて入力して下さい。）"]
[null,null,null,null,null,null,null,"②"]
[null,null,null,null,null,null,null,"③"]
[null,null,null,null,null,null,null,"④"]
[null,null,null,null,null,null,null,"⑤"]
[null,null,"井戸の本数",null,null,null,null,null,null,null,null,null,null,"本",null,null,null,null,null,null,null,null,null,null,null,null,null,null,null,null,null,null,"上記の井戸の合計数を入力してください。"]
[null,null,"地下水の用途",null,null,null,null,null,{"$f":"作業表!E6","v":" "},null,"その他",null,null,null,null,null,"その他の内容",null,null,null,null,null,null,null,null,null,null,null,null,null,null,null,"▼をクリックして該当する \"用途\" を選択してください。\nその他を選択した場合は内容を入力してください。"]

{"sheet":"入力３","index":3,"n_rows":52,"n_cols":11,"rows_kept":52,"cut":false,"hidden":false,"merged":[[46,1,49,2],[46,3,46,9],[48,3,48,9],[35,2,37,2],[35,4,35,5],[49,3,49,9],[37,4,37,5],[39,1,39,7],[38,2,38,7],[46,10,49,10],[47,3,47,9],[25,4,30,4],[26,5,30,5],[34,4,34,5],[25,3,30,3],[36,4,36,5],[21,6,21,7],[19,1,38,1],[33,4,33,5],[5,4,5,5],[9,6,9,7],[10,6,10,7],[12,6,12,7],[7,4,7,5],[19,4,24,4],[20,5,24,5],[22,6,22,7],[20,6,20,7],[16,4,16,5],[17,4,17,5],[5,1,18,1],[4,8,4,9],[19,2,31,2],[32,2,34,2],[18,2,18,7],[15,4,15,5],[31,4,31,5],[30,6,30,7],[27,6,27,7],[26,6,26,7],[32,4,32,5],[5,2,14,2],[4,1,4,2],[4,3,4,5],[4,6,4,7],[6,4,6,5],[8,3,12,3],[2,1,2,10],[44,1,44,7],[42,1,42,7],[41,1,41,7],[31,10,37,10],[28,6,28,7],[29,6,29,7],[24,6,24,7],[23,6,23,7],[15,2,17,2],[11,6,11,7],[13,4,13,5],[14,4,14,5],[8,4,12,4],[9,5,12,5],[19,3,24,3]]}
[]
[]
[null,"③　合理化の方策入力（地下水使用合理化計画書）"]
[]
[null,"合理化の方策",null,"合理化の具体的な内容",null,null,"数量",null,"合理化計画量",null,"入力項目の説明（記入例）"]
[null,"①　循環・再利用水量","　⑴　循環・再利用\n　　　装置の設置",1,"冷却塔（クーリングタワー）",null,null,"台",null,"㎥／年","数量、合理化計画量を入力してください。\n"]
[null,null,null,2,"ボイラー等のドレン水回収",null,null,"台",null,"㎥／年","数量、合理化計画量を入力してください。"]
[null,null,null,3,"洗浄用水等の循環・再利用",null,null,"台",null,"㎥／年","数量、合理化計画量を入力してください。"]
[null,null,null,4,"浴場水等の循環・再利用\n（プール・池等を含む。）\n\n　Ａ, Ｂ どちらかを入力してください。\n　両方入力がある場合は Ａ を優先します。","Ａ",null,"台",null,"㎥／年","数量、合理化計画量を入力してください。"]
[null,null,null,null,null,"Ｂ","循環量",null,null,"㎥/min","１分あたりの循環量を入力してください。"]
[null,null,null,null,null,null,"稼働時間",null,null,"時間","１日の稼働時間を入力してください。"]
[null,null,null,null,null,null,"営業日数",null,null,"日","営業日数を入力してください。"]
[null,null,null,null,null,null,"合理化計画量",null,{"$f":"計算表!D18","v":""},"㎥／年","　※入力された内容から自動計算します。"]
[null,null,null,5,null,null,null,"台",null,"㎥／年","合理化の具体的な内容を入力してください。（３０文字程度）\n数量、合理化計画量を入力してください。"]
[null,null,null,6,null,null,null,"台",null,"㎥／年","合理化の具体的な内容を入力してください。（３０文字程度）\n数量、合理化計画量を入力してください。"]
[null,null,"　⑵　その他",1,"中水道設備",null,null,"台",null,"㎥／年","数量、合理化計画量を入力してください。"]
[null,null,null,2,null,null,null,"台",null,"㎥／年","合理化の具体的な内容を入力してください。（３０文字程度）\n数量、合理化計画量を入力してください。"]
[null,null,null,3,null,null,null,"台",null,"㎥／年","合理化の具体的な内容を入力してください。（３０文字程度）\n数量、合理化計画量を入力してください。"]
[null,null,"小計　①",null,null,null,null,null,{"$f":"計算表!D23","v":""},"㎥／年","　※入力された内容から自動計算します。"]
[null,"②　有効活用水量","　⑴　節水機器の設置",1,"節水トイレ\n\n　Ａ, Ｂ どちらかを入力してください。\n　両方入力がある場合は Ａ を優先します。","Ａ",null,"箇所",null,"㎥／年","数量、合理化計画量を記入してください。"]
[null,null,null,null,null,"Ｂ","設置箇所",null,null,"箇所","設置箇所数を記入してください。"]
[null,null,null,null,null,null,"１日あたり\n使用回数",null,null,"回","１日の使用回数を記入してください。"]
[null,null,null,null,null,null,"営業日数",null,null,"日","営業日数を記入してください。"]
[null,null,null,null,null,null,"設置年度",null,null,null,"▼をクリックして該当する \"設置年度\" を選択してください。"]
[null,null,null,null,null,null,"合理化計画量",null,{"$f":"計算表!H19","v":""},"㎥／年","　※入力された内容から自動計算します。"]
[null,null,null,2,"節水コマ\n\n　Ａ, Ｂ どちらかを入力してください。\n　両方入力がある場合は Ａ を優先します。","Ａ",null,"栓",null,"㎥／年","数量、合理化計画量を入力してください。"]
[null,null,null,null,null,"Ｂ","設置箇所",null,null,"箇所","設置箇所数を入力してください。"]
[null,null,null,null,null,null,"１日あたり\n使用回数",null,null,"回","１日の使用回数を入力してください。"]
[null,null,null,null,null,null,"１回あたり\n使用時間",null,null,"秒","１回の使用時間（秒）を入力してください。"]
[null,null,null,null,null,null,"営業日数",null,null,"日","営業日数を入力してください。"]
[null,null,null,null,null,null,"合理化計画量",null,{"$f":"計算表!H30","v":""},"㎥／年","　※入力された内容から自動計算します。"]
[null,null,null,3,null,null,null,null,null,"㎥／年","合理化の具体的な内容を入力してください。（３０文字程度）\n\n数量、合理化計画量を入力してください。\n\n数量については（単位：箇所、基、台など）を入力してください。"]
[null,null,"　⑵　雨水利用設備の\n　　　設置",1,null,null,null,null,null,"㎥／年"]
[null,null,null,2,null,null,null,null,null,"㎥／年"]
[null,null,null,3,null,null,null,null,null,"㎥／年"]
[null,null,"　⑶　その他",1,null,null,null,null,null,"㎥／年"]
[null,null,null,2,null,null,null,null,null,"㎥／年"]
[null,null,null,3,null,null,null,null,null,"㎥／年"]
[null,null,"小計　②",null,null,null,null,null,{"$f":"計算表!H38","v":""},"㎥／年","　※入力された内容から自動計算します。"]
[null,"合理化計画量の合計　（①＋②）",null,null,null,null,null,null,{"$f":"計算表!L2","v":""},"㎥／年","　※入力された内容から自動計算します。"]
[]
[null,"地下水採取量　③",null,null,null,null,null,null,{"$f":"入力２!I9","v":0},"㎥／年","　※【②　基本情報入力】「年間採取量」の数値を自動\n     入力します。"]
[null,"上水道使用料　④",null,null,null,null,null,null,null,"㎥／年","上水道使用量を入力してください。"]
[]
[null,"水の循環率　①÷（①＋③＋④）",null,null,null,null,null,null,{"$f":"計算表!L10","v":""},"％","　※入力された内容から自動計算します。"]
[]
[null,"特記事項",null,null,null,null,null,null,null,null,"入力内容の補足や、地下水利用上配慮していることなどを、自由に入力してください。（１行５０文字程度）"]
[]
[]
[]
[]
[null,null,null,null,null,null,null,null,null,null,"－　以　上　ー"]

{"sheet":"入力４","index":4,"n_rows":52,"n_cols":11,"rows_kept":52,"cut":false,"hidden":false,"merged":[[30,6,30,7],[19,4,24,4],[20,5,24,5],[35,4,35,5],[31,10,37,10],[26,5,30,5],[34,4,34,5],[19,1,38,1],[27,6,27,7],[26,6,26,7],[24,6,24,7],[23,6,23,7],[31,4,31,5],[32,4,32,5],[33,4,33,5],[20,6,20,7],[21,6,21,7],[19,2,31,2],[32,2,34,2],[36,4,36,5],[38,2,38,7],[28,6,28,7],[29,6,29,7],[16,4,16,5],[15,2,17,2],[18,2,18,7],[15,4,15,5],[9,6,9,7],[10,6,10,7],[12,6,12,7],[17,4,17,5],[19,3,24,3],[25,3,30,3],[4,3,4,5],[46,1,49,2],[46,3,46,9],[49,3,49,9],[37,4,37,5],[22,6,22,7],[25,4,30,4],[4,6,4,7],[6,4,6,5],[8,3,12,3],[4,8,4,9],[7,4,7,5],[5,1,18,1],[5,4,5,5],[46,10,49,10],[47,3,47,9],[48,3,48,9],[2,1,2,10],[41,1,41,7],[42,1,42,7],[44,1,44,7],[5,2,14,2],[4,1,4,2],[11,6,11,7],[13,4,13,5],[14,4,14,5],[8,4,12,4],[9,5,12,5],[39,1,39,7],[35,2,37,2]]}
[]
[]
[null,"④　合理化の方策入力（地下水使用合理化計画実施状況報告書）"]
[]
[null,"合理化の方策",null,"合理化の具体的な内容",null,null,"数量",null,"合理化実施量",null,"入力項目の説明（記入例）"]
[null,"①　循環・再利用水量","　⑴　循環・再利用\n　　　装置の設置",1,"冷却塔（クーリングタワー）",null,null,"台",null,"㎥／年","数量、合理化実施量を入力してください。\n"]
[null,null,null,2,"ボイラー等のドレン水回収",null,null,"台",null,"㎥／年","数量、合理化実施量を入力してください。"]
[null,null,null,3,"洗浄用水等の循環・再利用",null,null,"台",null,"㎥／年","数量、合理化実施量を入力してください。"]
[null,null,null,4,"浴場水等の循環・再利用\n（プール・池等を含む。）\n\n　Ａ, Ｂ どちらかを入力してください。\n　両方入力がある場合は Ａ を優先します。","Ａ",null,"台",null,"㎥／年","数量、合理化実施量を入力してください。"]
[null,null,null,null,null,"Ｂ","循環量",null,null,"㎥/min","１分あたりの循環量を入力してください。"]
[null,null,null,null,null,null,"稼働時間",null,null,"時間","１日の稼働時間を入力してください。"]
[null,null,null,null,null,null,"営業日数",null,null,"日","営業日数を入力してください。"]
[null,null,null,null,null,null,"合理化計画量",null,{"$f":"計算表２!D18","v":""},"㎥／年","　※入力された内容から自動計算します。"]
[null,null,null,5,null,null,null,"台",null,"㎥／年","合理化の具体的な内容を入力してください。（３０文字程度）\n数量、合理化計画量を入力してください。"]
[null,null,null,6,null,null,null,"台",null,"㎥／年","合理化の具体的な内容を入力してください。（３０文字程度）\n数量、合理化計画量を入力してください。"]
[null,null,"　⑵　その他",1,"中水道設備",null,null,"台",null,"㎥／年","数量、合理化計画量を入力してください。"]
[null,null,null,2,null,null,null,"台",null,"㎥／年","合理化の具体的な内容を入力してください。（３０文字程度）\n数量、合理化計画量を入力してください。"]
[null,null,null,3,null,null,null,"台",null,"㎥／年","合理化の具体的な内容を入力してください。（３０文字程度）\n数量、合理化計画量を入力してください。"]
[null,null,"小計　①",null,null,null,null,null,{"$f":"計算表２!D23","v":""},"㎥／年","　※入力された内容から自動計算します。"]
[null,"②　有効活用水量","　⑴　節水機器の設置",1,"節水トイレ\n\n　Ａ, Ｂ どちらかを入力してください。\n　両方入力がある場合は Ａ を優先します。","Ａ",null,"箇所",null,"㎥／年","数量、合理化実施量を入力してください。"]
[null,null,null,null,null,"Ｂ","設置箇所",null,null,"箇所","設置箇所数を記入してください。"]
[null,null,null,null,null,null,"１日あたり\n使用回数",null,null,"回","１日の使用回数を記入してください。"]
[null,null,null,null,null,null,"営業日数",null,null,"日","営業日数を記入してください。"]
[null,null,null,null,null,null,"設置年度",null,null,null,"▼をクリックして該当する \"設置年度\" を選択してください。"]
[null,null,null,null,null,null,"合理化計画量",null,{"$f":"計算表２!H19","v":""},"㎥／年","　※入力された内容から自動計算します。"]
[null,null,null,2,"節水コマ\n\n　Ａ, Ｂ どちらかを入力してください。\n　両方入力がある場合は Ａ を優先します。","Ａ",null,"栓",null,"㎥／年","数量、合理化計画量を記入してください。"]
[null,null,null,null,null,"Ｂ","設置箇所",null,null,"箇所","設置箇所数を入力してください。"]
[null,null,null,null,null,null,"１日あたり\n使用回数",null,null,"回","１日の使用回数を入力してください。"]
[null,null,null,null,null,null,"１回あたり\n使用時間",null,null,"秒","１回の使用時間（秒）を入力してください。"]
[null,null,null,null,null,null,"営業日数",null,null,"日","営業日数を入力してください。"]
[null,null,null,null,null,null,"合理化計画量",null,{"$f":"計算表２!H30","v":""},"㎥／年","　※入力された内容から自動計算します。"]
[null,null,null,3,null,null,null,null,null,"㎥／年","合理化の具体的な内容を入力してください。（３０文字程度）\n\n数量、合理化計画量を入力してください。\n\n数量については（単位：箇所、基、台など）を入力してください。"]
[null,null,"　⑵　雨水利用設備の\n　　　設置",1,null,null,null,null,null,"㎥／年"]
[null,null,null,2,null,null,null,null,null,"㎥／年"]
[null,null,null,3,null,null,null,null,null,"㎥／年"]
[null,null,"　⑶　その他",1,null,null,null,null,null,"㎥／年"]
[null,null,null,2,null,null,null,null,null,"㎥／年"]
[null,null,null,3,null,null,null,null,null,"㎥／年"]
[null,null,"小計　②",null,null,null,null,null,{"$f":"計算表２!H38","v":""},"㎥／年","　※入力された内容から自動計算します。"]
[null,"合理化計画量の合計　（①＋②）",null,null,null,null,null,null,{"$f":"計算表２!L2","v":""},"㎥／年","　※入力された内容から自動計算します。"]
[]
[null,"地下水採取量　③",null,null,null,null,null,null,{"$f":"入力２!I9","v":0},"㎥／年","　※【②　基本情報入力】「年間採取量」の数値。"]
[null,"上水道使用料　④",null,null,null,null,null,null,null,"㎥／年","上水道使用量を入力してください。"]
[]
[null,"水の循環率　①÷（①＋③＋④）",null,null,null,null,null,null,{"$f":"計算表２!L10","v":""},"％","　※入力された内容から自動計算します。"]
[]
[null,"特記事項",null,null,null,null,null,null,null,null,"入力内容の補足や、地下水利用上配慮していることなどを、自由に入力してください。（１行５０文字程度）"]
[]
[]
[]
[]
[null,null,null,null,null,null,null,null,null,null,"－　以　上　ー"]

{"sheet":"計画書","index":5,"n_rows":48,"n_cols":41,"rows_kept":48,"cut":false,"hidden":false,"merged":[[40,9,40,11],[40,12,40,18],[40,34,40,38],[40,39,40,40],[40,23,40,33],[35,34,35,38],[35,39,35,40],[33,34,33,38],[41,39,41,40],[41,34,41,38],[38,34,38,38],[38,39,38,40],[39,34,39,38],[39,39,39,40],[37,31,37,33],[33,28,33,30],[35,28,35,30],[34,28,34,30],[35,31,35,33],[36,31,36,33],[31,34,31,38],[31,39,31,40],[32,34,32,38],[32,39,32,40],[33,39,33,40],[34,34,34,38],[34,39,34,40],[28,39,28,40],[29,34,29,38],[29,39,29,40],[30,34,30,38],[30,39,30,40],[28,34,28,38],[4,31,4,39],[5,24,5,27],[6,24,6,40],[19,39,19,40],[19,34,19,38],[12,40,13,40],[20,39,20,40],[21,34,21,38],[10,24,10,32],[21,39,21,40],[8,24,8,38],[10,35,10,39],[12,34,13,39],[15,30,15,40],[16,30,16,40],[14,19,16,27],[20,34,20,38],[20,9,20,27],[18,9,18,27],[19,2,24,8],[19,9,19,27],[19,28,19,30],[18,34,18,40],[18,28,18,33],[23,28,23,30],[24,28,24,30],[19,1,28,1],[19,31,19,33],[28,2,28,33],[25,2,27,8],[22,9,22,27],[23,9,23,27],[22,34,22,38],[22,39,22,40],[25,39,25,40],[26,34,26,38],[26,31,26,33],[27,31,27,33],[26,39,26,40],[27,34,27,38],[27,39,27,40],[26,9,26,27],[26,28,26,30],[13,1,13,2],[12,3,13,8],[12,28,13,33],[12,9,13,27],[24,31,24,33],[25,31,25,33],[24,34,24,38],[24,39,24,40],[20,28,20,30],[21,28,21,30],[20,31,20,33],[21,31,21,33],[23,34,23,38],[23,39,23,40],[24,9,24,27],[25,34,25,38],[21,9,21,27],[22,31,22,33],[23,31,23,33],[25,9,25,27],[22,28,22,30],[14,1,16,8],[16,15,16,17],[18,1,18,8],[27,28,27,30],[27,9,27,27],[42,1,45,8],[42,9,42,40],[43,9,43,40],[44,9,44,40],[45,9,45,40],[36,34,36,38],[36,39,36,40],[37,34,37,38],[37,39,37,40],[29,1,38,1],[32,2,34,8],[33,9,33,27],[32,9,32,27],[34,9,34,27],[35,9,35,27],[36,9,36,27],[37,9,37,27],[38,2,38,33],[32,31,32,33],[33,31,33,33],[34,31,34,33],[32,28,32,30],[1,33,1,35],[1,27,1,29],[1,20,1,23],[41,1,41,22],[41,23,41,33],[39,1,39,33],[40,1,40,8],[36,28,36,30],[37,28,37,30],[35,2,37,8],[29,2,31,8],[29,28,29,30],[29,31,29,33],[30,31,30,33],[30,28,30,30],[31,28,31,30],[31,31,31,33],[30,9,30,27],[31,9,31,27],[29,9,29,27],[25,28,25,30],[2,1,3,40],[11,1,11,40],[12,1,12,2]]}
[]
[null,"別記第19号様式(第18条関係)",null,null,null,null,null,null,null,null,null,null,null,null,null,null,null,null,null,null,"提出年度",null,null,null,null,null,null,"市町村",null,null,null,null,null,"事業者"]
[null,"地下水使用合理化計画書"]
[]
[null,null,null,null,null,null,null,null,null,null,null,null,null,null,null,null,null,null,null,null,null,null,null,null,null,null,null,null,null,null,null,{"$f":"入力１!R9","v":"平成26年4月1日"}]
[null,null,"熊本県知事　　　　　　　様",null,null,null,null,null,null,null,null,null,null,null,null,null,null,null,null,null,null,null,null,"〒",{"$f":"IF(ISBLANK(入力１!I12),\"\",入力１!I12)","v":""}]
[null,null,null,null,null,null,null,null,null,null,null,null,null,null,null,null,null,null,null,"提出者",null,null,"住所",null,{"$f":"IF(ISBLANK(入力１!I13),\"\",入力１!I13)","v":""}]
[null,null,null,null,null,null,null,null,null,null,null,null,null,null,null,null,null,null,null,"(主たる事務所の所在地) "]
[null,null,null,null,null,null,null,null,null,null,null,null,null,null,null,null,null,null,null,null,null,null,"氏名",null,{"$f":"IF(ISBLANK(入力１!I11),\"\",入力１!I11)","v":""},null,null,null,null,null,null,null,null,null,null,null,null,null,null,null,"印"]
[null,null,null,null,null,null,null,null,null,null,null,null,null,null,null,null,null,null,null,"(法人等にあっては名称及び代表者の氏名)"]
[null,null,null,null,null,null,null,null,null,null,null,null,null,null,null,null,null,null,null,null,null,null,"電話",null,{"$f":"IF(ISBLANK(入力１!I14),\"\",入力１!I14)","v":""},null,null,null,null,null,null,null,null,"担当(　　 　　　",null,{"$f":"IF(ISBLANK(入力１!I15),\"\",入力１!I15)","v":""},null,null,null,null,")"]
[null,"熊本県地下水保全条例第32条の4第1項の規定により、地下水使用合理化計画について、次のとおり提出します。"]
[null,"様式",null,"揚水設備の設置場所",null,null,null,null,null,{"$f":"IF(ISBLANK(入力２!I8),\"\",入力２!I8)","v":""},null,null,null,null,null,null,null,null,null,null,null,null,null,null,null,null,null,null,"年間採取量",null,null,null,null,null,{"$f":"IF(ISBLANK(入力２!I9),\"\",入力２!I9)","v":""},null,null,null,null,null,"㎥"]
[null,"07"]
[null,"井戸の番号及び本数（複数ある場合には全て記入）",null,null,null,null,null,null,null,{"$f":"IF(ISBLANK(入力２!I10),\"\",MID(入力２!I10,1,1))","v":""},{"$f":"IF(ISBLANK(入力２!I10),\"\",MID(入力２!I10,2,1))","v":""},{"$f":"IF(ISBLANK(入力２!I10),\"\",MID(入力２!I10,3,1))","v":""},{"$f":"IF(ISBLANK(入力２!I10),\"\",MID(入力２!I10,4,1))","v":""},{"$f":"IF(ISBLANK(入力２!I10),\"\",MID(入力２!I10,5,1))","v":""},{"$f":"IF(ISBLANK(入力２!I13),\"\",MID(入力２!I13,1,1))","v":""},{"$f":"IF(ISBLANK(入力２!I13),\"\",MID(入力２!I13,2,1))","v":""},{"$f":"IF(ISBLANK(入力２!I13),\"\",MID(入力２!I13,3,1))","v":""},{"$f":"IF(ISBLANK(入力２!I13),\"\",MID(入力２!I13,4,1))","v":""},{"$f":"IF(ISBLANK(入力２!I13),\"\",MID(入力２!I13,5,1))","v":""},"地下水の用途"]
[null,null,null,null,null,null,null,null,null,{"$f":"IF(ISBLANK(入力２!I11),\"\",MID(入力２!I11,1,1))","v":""},{"$f":"IF(ISBLANK(入力２!I11),\"\",MID(入力２!I11,2,1))","v":""},{"$f":"IF(ISBLANK(入力２!I11),\"\",MID(入力２!I11,3,1))","v":""},{"$f":"IF(ISBLANK(入力２!I11),\"\",MID(入力２!I11,4,1))","v":""},{"$f":"IF(ISBLANK(入力２!I11),\"\",MID(入力２!I11,5,1))","v":""},{"$f":"IF(ISBLANK(入力２!I14),\"\",MID(入力２!I14,1,1))","v":""},{"$f":"IF(ISBLANK(入力２!I14),\"\",MID(入力２!I14,2,1))","v":""},{"$f":"IF(ISBLANK(入力２!I14),\"\",MID(入力２!I14,3,1))","v":""},{"$f":"IF(ISBLANK(入力２!I14),\"\",MID(入力２!I14,4,1))","v":""},{"$f":"IF(ISBLANK(入力２!I14),\"\",MID(入力２!I14,5,1))","v":""},null,null,null,null,null,null,null,null,null,null,{"$f":"IF(ISBLANK(入力２!I16),\"\",入力２!I16)","v":" "},{"$f":"作業表!F6","v":"　"}]
[null,null,null,null,null,null,null,null,null,{"$f":"IF(ISBLANK(入力２!I12),\"\",MID(入力２!I12,1,1))","v":""},{"$f":"IF(ISBLANK(入力２!I12),\"\",MID(入力２!I12,2,1))","v":""},{"$f":"IF(ISBLANK(入力２!I12),\"\",MID(入力２!I12,3,1))","v":""},{"$f":"IF(ISBLANK(入力２!I12),\"\",MID(入力２!I12,4,1))","v":""},{"$f":"IF(ISBLANK(入力２!I12),\"\",MID(入力２!I12,5,1))","v":""},"計",{"$f":"IF(ISBLANK(入力２!I15),\"\",入力２!I15)","v":""},null,null,"本",null,null,null,null,null,null,null,null,null,null,null,{"$f":"IF(ISBLANK(入力２!V16),\"\",\"(\"&入力２!V16&\")\")","v":""}]
[]
[null,"合理化の方策",null,null,null,null,null,null,null,"合理化の具体的な内容",null,null,null,null,null,null,null,null,null,null,null,null,null,null,null,null,null,null,"数　量",null,null,null,null,null,"合理化計画量"]
[null,"循環・再利用水量","循環・再利用装置の設置",null,null,null,null,null,null,"冷却塔（クーリングタワー）",null,null,null,null,null,null,null,null,null,null,null,null,null,null,null,null,null,null,{"$f":"IF(ISBLANK(入力３!G6),\"\",入力３!G6)","v":""},null,null,"台",null,null,{"$f":"IF(ISBLANK(入力３!I6),\"\",入力３!I6)","v":""},null,null,null,null,"㎥／年"]
[null,null,null,null,null,null,null,null,null,"ボイラー等のドレン水回収",null,null,null,null,null,null,null,null,null,null,null,null,null,null,null,null,null,null,{"$f":"IF(ISBLANK(入力３!G7),\"\",入力３!G7)","v":""},null,null,"台",null,null,{"$f":"IF(ISBLANK(入力３!I7),\"\",入力３!I7)","v":""},null,null,null,null,"㎥／年"]
[null,null,null,null,null,null,null,null,null,"洗浄用水等の循環・再利用",null,null,null,null,null,null,null,null,null,null,null,null,null,null,null,null,null,null,{"$f":"IF(ISBLANK(入力３!G8),\"\",入力３!G8)","v":""},null,null,"台",null,null,{"$f":"IF(ISBLANK(入力３!I8),\"\",入力３!I8)","v":""},null,null,null,null,"㎥／年"]
[null,null,null,null,null,null,null,null,null,"浴場水等の循環・再利用（プール・池等を含む。）",null,null,null,null,null,null,null,null,null,null,null,null,null,null,null,null,null,null,{"$f":"IF(ISBLANK(入力３!G9),\"\",入力３!G9)","v":""},null,null,"台",null,null,{"$f":"IF(ISBLANK(入力３!I9),IF(ISBLANK(入力３!I13),\"\",入力３!I13),入力３!I9)","v":""},null,null,null,null,"㎥／年"]
[null,null,null,null,null,null,null,null,null,{"$f":"IF(ISBLANK(入力３!E14),\"\",入力３!E14)","v":""},null,null,null,null,null,null,null,null,null,null,null,null,null,null,null,null,null,null,{"$f":"IF(ISBLANK(入力３!G14),\"\",入力３!G14)","v":""},null,null,"台",null,null,{"$f":"IF(ISBLANK(入力３!I14),\"\",入力３!I14)","v":""},null,null,null,null,"㎥／年"]
[null,null,null,null,null,null,null,null,null,{"$f":"IF(ISBLANK(入力３!E15),\"\",入力３!E15)","v":""},null,null,null,null,null,null,null,null,null,null,null,null,null,null,null,null,null,null,{"$f":"IF(ISBLANK(入力３!G15),\"\",入力３!G15)","v":""},null,null,"台",null,null,{"$f":"IF(ISBLANK(入力３!I15),\"\",入力３!I15)","v":""},null,null,null,null,"㎥／年"]
[null,null,"その他",null,null,null,null,null,null,"中水道設備",null,null,null,null,null,null,null,null,null,null,null,null,null,null,null,null,null,null,{"$f":"IF(ISBLANK(入力３!G16),\"\",入力３!G16)","v":""},null,null,"台",null,null,{"$f":"IF(ISBLANK(入力３!I16),\"\",入力３!I16)","v":""},null,null,null,null,"㎥／年"]
[null,null,null,null,null,null,null,null,null,{"$f":"IF(ISBLANK(入力３!E17),\"\",入力３!E17)","v":""},null,null,null,null,null,null,null,null,null,null,null,null,null,null,null,null,null,null,{"$f":"IF(ISBLANK(入力３!G17),\"\",入力３!G17)","v":""},null,null,"台",null,null,{"$f":"IF(ISBLANK(入力３!I17),\"\",入力３!I17)","v":""},null,null,null,null,"㎥／年"]
[null,null,null,null,null,null,null,null,null,{"$f":"IF(ISBLANK(入力３!E18),\"\",入力３!E18)","v":""},null,null,null,null,null,null,null,null,null,null,null,null,null,null,null,null,null,null,{"$f":"IF(ISBLANK(入力３!G18),\"\",入力３!G18)","v":""},null,null,"台",null,null,{"$f":"IF(ISBLANK(入力３!I18),\"\",入力３!I18)","v":""},null,null,null,null,"㎥／年"]
[null,null,"小　　　計　　　①",null,null,null,null,null,null,null,null,null,null,null,null,null,null,null,null,null,null,null,null,null,null,null,null,null,null,null,null,null,null,null,{"$f":"IF(ISBLANK(入力３!I19),\"\",入力３!I19)","v":""},null,null,null,null,"㎥／年"]
[null,"有効活用水量","節水機器の設置",null,null,null,null,null,null,"節水トイレ",null,null,null,null,null,null,null,null,null,null,null,null,null,null,null,null,null,null,{"$f":"IF(ISBLANK(入力３!G20),\"\",入力３!G20)","v":""},null,null,"箇所",null,null,{"$f":"IF(ISBLANK(入力３!I20),IF(ISBLANK(入力３!I25),\"\",入力３!I25),入力３!I20)","v":""},null,null,null,null,"㎥／年"]
[null,null,null,null,null,null,null,null,null,"節水コマ",null,null,null,null,null,null,null,null,null,null,null,null,null,null,null,null,null,null,{"$f":"IF(ISBLANK(入力３!G26),\"\",入力３!G26)","v":""},null,null,"栓",null,null,{"$f":"IF(ISBLANK(入力３!I26),IF(ISBLANK(入力３!I31),\"\",入力３!I31),入力３!I26)","v":""},null,null,null,null,"㎥／年"]
[null,null,null,null,null,null,null,null,null,{"$f":"IF(ISBLANK(入力３!E32),\"\",入力３!E32)","v":""},null,null,null,null,null,null,null,null,null,null,null,null,null,null,null,null,null,null,{"$f":"IF(ISBLANK(入力３!G32),\"\",入力３!G32)","v":""},null,null,{"$f":"IF(ISBLANK(入力３!H32),\"\",入力３!H32)","v":""},null,null,{"$f":"IF(ISBLANK(入力３!I32),\"\",入力３!I32)","v":""},null,null,null,null,"㎥／年"]
[null,null,"雨水利用設備の設置",null,null,null,null,null,null,{"$f":"IF(ISBLANK(入力３!E33),\"\",入力３!E33)","v":""},null,null,null,null,null,null,null,null,null,null,null,null,null,null,null,null,null,null,{"$f":"IF(ISBLANK(入力３!G33),\"\",入力３!G33)","v":""},null,null,{"$f":"IF(ISBLANK(入力３!H33),\"\",入力３!H33)","v":""},null,null,{"$f":"IF(ISBLANK(入力３!I33),\"\",入力３!I33)","v":""},null,null,null,null,"㎥／年"]
[null,null,null,null,null,null,null,null,null,{"$f":"IF(ISBLANK(入力３!E34),\"\",入力３!E34)","v":""},null,null,null,null,null,null,null,null,null,null,null,null,null,null,null,null,null,null,{"$f":"IF(ISBLANK(入力３!G6),\"\",入力３!G34)","v":""},null,null,{"$f":"IF(ISBLANK(入力３!H34),\"\",入力３!H34)","v":""},null,null,{"$f":"IF(ISBLANK(入力３!I34),\"\",入力３!I34)","v":""},null,null,null,null,"㎥／年"]
[null,null,null,null,null,null,null,null,null,{"$f":"IF(ISBLANK(入力３!E35),\"\",入力３!E35)","v":""},null,null,null,null,null,null,null,null,null,null,null,null,null,null,null,null,null,null,{"$f":"IF(ISBLANK(入力３!G35),\"\",入力３!G35)","v":""},null,null,{"$f":"IF(ISBLANK(入力３!H35),\"\",入力３!H35)","v":""},null,null,{"$f":"IF(ISBLANK(入力３!I35),\"\",入力３!I35)","v":""},null,null,null,null,"㎥／年"]
[null,null,"その他",null,null,null,null,null,null,{"$f":"IF(ISBLANK(入力３!E36),\"\",入力３!E36)","v":""},null,null,null,null,null,null,null,null,null,null,null,null,null,null,null,null,null,null,{"$f":"IF(ISBLANK(入力３!G36),\"\",入力３!G36)","v":""},null,null,{"$f":"IF(ISBLANK(入力３!H36),\"\",入力３!H36)","v":""},null,null,{"$f":"IF(ISBLANK(入力３!I36),\"\",入力３!I36)","v":""},null,null,null,null,"㎥／年"]
[null,null,null,null,null,null,null,null,null,{"$f":"IF(ISBLANK(入力３!E37),\"\",入力３!E37)","v":""},null,null,null,null,null,null,null,null,null,null,null,null,null,null,null,null,null,null,{"$f":"IF(ISBLANK(入力３!G37),\"\",入力３!G37)","v":""},null,null,{"$f":"IF(ISBLANK(入力３!H37),\"\",入力３!H37)","v":""},null,null,{"$f":"IF(ISBLANK(入力３!I37),\"\",入力３!I37)","v":""},null,null,null,null,"㎥／年"]
[null,null,null,null,null,null,null,null,null,{"$f":"IF(ISBLANK(入力３!E38),\"\",入力３!E38)","v":""},null,null,null,null,null,null,null,null,null,null,null,null,null,null,null,null,null,null,{"$f":"IF(ISBLANK(入力３!G38),\"\",入力３!G38)","v":""},null,null,{"$f":"IF(ISBLANK(入力３!H38),\"\",入力３!H38)","v":""},null,null,{"$f":"IF(ISBLANK(入力３!I38),\"\",入力３!I38)","v":""},null,null,null,null,"㎥／年"]
[null,null,"小　　　計　　　②",null,null,null,null,null,null,null,null,null,null,null,null,null,null,null,null,null,null,null,null,null,null,null,null,null,null,null,null,null,null,null,{"$f":"IF(ISBLANK(入力３!I39),\"\",入力３!I39)","v":""},null,null,null,null,"㎥／年"]
[null,"合理化計画量の合計（①＋②）",null,null,null,null,null,null,null,null,null,null,null,null,null,null,null,null,null,null,null,null,null,null,null,null,null,null,null,null,null,null,null,null,{"$f":"IF(ISBLANK(入力３!I40),\"\",入力３!I40)","v":""},null,null,null,null,"㎥／年"]
[null,"地下水採取量",null,null,null,null,null,null,null,"③",null,null,{"$f":"IF(ISBLANK(入力２!I9),\"\",入力２!I9)","v":""},null,null,null,null,null,null,null,"㎥／年",null,null,"上水道使用量　　④",null,null,null,null,null,null,null,null,null,null,{"$f":"IF(ISBLANK(入力３!I43),\"\",入力３!I43)","v":""},null,null,null,null,"㎥／年"]
[null,"水 の 循 環 率 ",null,null,null,null,null,null,null,null,null,null,null,null,null,null,null,null,null,null,null,null,null,"①÷（①＋③＋④）",null,null,null,null,null,null,null,null,null,null,{"$f":"IF(ISBLANK(入力３!I45),\"\",入力３!I45)","v":""},null,null,null,null,"％"]
[null,"特記事項",null,null,null,null,null,null,null,{"$f":"IF(ISBLANK(入力３!D47),\"\",入力３!D47)","v":""}]
[null,null,null,null,null,null,null,null,null,{"$f":"IF(ISBLANK(入力３!D48),\"\",入力３!D48)","v":""}]
[null,null,null,null,null,null,null,null,null,{"$f":"IF(ISBLANK(入力３!D49),\"\",入力３!D49)","v":""}]
[null,null,null,null,null,null,null,null,null,{"$f":"IF(ISBLANK(入力３!D50),\"\",入力３!D50)","v":""}]
[null,"備考　　1  記載欄が不足するときは、別紙（日本工業規格A4）を使用してください。"]
[null,"　　　  2  内容のわかる写真、図面、資料等があれば適宜添付してください。"]

{"sheet":"報告書","index":6,"n_rows":48,"n_cols":41,"rows_kept":48,"cut":false,"hidden":false,"merged":[[42,1,45,8],[42,9,42,40],[43,9,43,40],[44,9,44,40],[45,9,45,40],[41,1,41,22],[41,23,41,33],[34,34,34,38],[34,39,34,40],[38,2,38,33],[29,1,38,1],[39,1,39,33],[40,1,40,8],[40,23,40,33],[39,34,39,38],[39,39,39,40],[40,9,40,11],[36,28,36,30],[37,28,37,30],[31,31,31,33],[32,31,32,33],[33,31,33,33],[34,31,34,33],[35,31,35,33],[36,31,36,33],[37,31,37,33],[32,28,32,30],[35,28,35,30],[30,31,30,33],[30,28,30,30],[31,28,31,30],[33,28,33,30],[34,28,34,30],[29,2,31,8],[29,28,29,30],[32,2,34,8],[35,2,37,8],[35,9,35,27],[36,9,36,27],[37,9,37,27],[33,9,33,27],[32,9,32,27],[34,9,34,27],[30,9,30,27],[31,9,31,27],[29,9,29,27],[19,1,28,1],[26,28,26,30],[19,31,19,33],[27,28,27,30],[28,2,28,33],[27,9,27,27],[25,2,27,8],[24,28,24,30],[25,28,25,30],[23,31,23,33],[24,31,24,33],[25,31,25,33],[22,28,22,30],[23,28,23,30],[22,31,22,33],[26,9,26,27],[25,9,25,27],[21,28,21,30],[22,9,22,27],[23,9,23,27],[29,31,29,33],[26,31,26,33],[27,31,27,33],[19,28,19,30],[18,34,18,40],[24,9,24,27],[18,1,18,8],[18,9,18,27],[18,28,18,33],[20,31,20,33],[21,31,21,33],[20,34,20,38],[20,39,20,40],[21,34,21,38],[21,39,21,40],[19,34,19,38],[19,39,19,40],[24,39,24,40],[24,34,24,38],[19,2,24,8],[19,9,19,27],[20,9,20,27],[21,9,21,27],[20,28,20,30],[1,20,1,23],[1,27,1,29],[1,33,1,35],[14,1,16,8],[2,1,3,40],[11,1,11,40],[12,1,12,2],[13,1,13,2],[12,3,13,8],[12,28,13,33],[10,24,10,32],[10,35,10,39],[12,34,13,39],[12,40,13,40],[4,31,4,39],[5,24,5,27],[6,24,6,40],[8,24,8,38],[12,9,13,27],[15,30,15,40],[16,15,16,17],[16,30,16,40],[14,19,16,27],[25,34,25,38],[25,39,25,40],[26,34,26,38],[26,39,26,40],[22,34,22,38],[22,39,22,40],[23,34,23,38],[23,39,23,40],[29,34,29,38],[29,39,29,40],[30,34,30,38],[30,39,30,40],[27,34,27,38],[27,39,27,40],[28,34,28,38],[28,39,28,40],[35,34,35,38],[35,39,35,40],[36,34,36,38],[36,39,36,40],[31,34,31,38],[31,39,31,40],[32,34,32,38],[32,39,32,40],[33,34,33,38],[33,39,33,40],[40,12,40,18],[40,34,40,38],[40,39,40,40],[41,34,41,38],[41,39,41,40],[37,34,37,38],[37,39,37,40],[38,34,38,38],[38,39,38,40]]}
[]
[null,"別記第20号様式(第18条関係)",null,null,null,null,null,null,null,null,null,null,null,null,null,null,null,null,null,null,"提出年度",null,null,null,null,null,null,"市町村",null,null,null,null,null,"事業者"]
[null,"地下水使用合理化計画実施状況報告書"]
[]
[null,null,null,null,null,null,null,null,null,null,null,null,null,null,null,null,null,null,null,null,null,null,null,null,null,null,null,null,null,null,null,{"$f":"入力１!R9","v":"平成26年4月1日"}]
[null,null,"熊本県知事　　　　　　　様",null,null,null,null,null,null,null,null,null,null,null,null,null,null,null,null,null,null,null,null,"〒",{"$f":"IF(ISBLANK(入力１!I12),\"\",入力１!I12)","v":""}]
[null,null,null,null,null,null,null,null,null,null,null,null,null,null,null,null,null,null,null,"提出者",null,null,"住所",null,{"$f":"IF(ISBLANK(入力１!I13),\"\",入力１!I13)","v":""}]
[null,null,null,null,null,null,null,null,null,null,null,null,null,null,null,null,null,null,null,"(主たる事務所の所在地) "]
[null,null,null,null,null,null,null,null,null,null,null,null,null,null,null,null,null,null,null,null,null,null,"氏名",null,{"$f":"IF(ISBLANK(入力１!I11),\"\",入力１!I11)","v":""},null,null,null,null,null,null,null,null,null,null,null,null,null,null,null,"印"]
[null,null,null,null,null,null,null,null,null,null,null,null,null,null,null,null,null,null,null,"(法人等にあっては名称及び代表者の氏名)"]
[null,null,null,null,null,null,null,null,null,null,null,null,null,null,null,null,null,null,null,null,null,null,"電話",null,{"$f":"IF(ISBLANK(入力１!I14),\"\",入力１!I14)","v":""},null,null,null,null,null,null,null,null,"担当(　　 　　　",null,{"$f":"IF(ISBLANK(入力１!I15),\"\",入力１!I15)","v":""},null,null,null,null,")"]
[null,"熊本県地下水保全条例第32条の4第3項の規定により、地下水使用合理化計画の実施状況について、次のとおり報告します。"]
[null,"様式",null,"揚水設備の設置場所",null,null,null,null,null,{"$f":"IF(ISBLANK(入力２!I8),\"\",入力２!I8)","v":""},null,null,null,null,null,null,null,null,null,null,null,null,null,null,null,null,null,null,"年間採取量",null,null,null,null,null,{"$f":"IF(ISBLANK(入力２!I9),\"\",入力２!I9)","v":""},null,null,null,null,null,"㎥"]
[null,"08"]
[null,"井戸の番号及び本数（複数ある場合には全て記入）",null,null,null,null,null,null,null,{"$f":"IF(ISBLANK(入力２!I10),\"\",MID(入力２!I10,1,1))","v":""},{"$f":"IF(ISBLANK(入力２!I10),\"\",MID(入力２!I10,2,1))","v":""},{"$f":"IF(ISBLANK(入力２!I10),\"\",MID(入力２!I10,3,1))","v":""},{"$f":"IF(ISBLANK(入力２!I10),\"\",MID(入力２!I10,4,1))","v":""},{"$f":"IF(ISBLANK(入力２!I10),\"\",MID(入力２!I10,5,1))","v":""},{"$f":"IF(ISBLANK(入力２!I13),\"\",MID(入力２!I13,1,1))","v":""},{"$f":"IF(ISBLANK(入力２!I13),\"\",MID(入力２!I13,2,1))","v":""},{"$f":"IF(ISBLANK(入力２!I13),\"\",MID(入力２!I13,3,1))","v":""},{"$f":"IF(ISBLANK(入力２!I13),\"\",MID(入力２!I13,4,1))","v":""},{"$f":"IF(ISBLANK(入力２!I13),\"\",MID(入力２!I13,5,1))","v":""},"地下水の用途"]
[null,null,null,null,null,null,null,null,null,{"$f":"IF(ISBLANK(入力２!I11),\"\",MID(入力２!I11,1,1))","v":""},{"$f":"IF(ISBLANK(入力２!I11),\"\",MID(入力２!I11,2,1))","v":""},{"$f":"IF(ISBLANK(入力２!I11),\"\",MID(入力２!I11,3,1))","v":""},{"$f":"IF(ISBLANK(入力２!I11),\"\",MID(入力２!I11,4,1))","v":""},{"$f":"IF(ISBLANK(入力２!I11),\"\",MID(入力２!I11,5,1))","v":""},{"$f":"IF(ISBLANK(入力２!I14),\"\",MID(入力２!I14,1,1))","v":""},{"$f":"IF(ISBLANK(入力２!I14),\"\",MID(入力２!I14,2,1))","v":""},{"$f":"IF(ISBLANK(入力２!I14),\"\",MID(入力２!I14,3,1))","v":""},{"$f":"IF(ISBLANK(入力２!I14),\"\",MID(入力２!I14,4,1))","v":""},{"$f":"IF(ISBLANK(入力２!I14),\"\",MID(入力２!I14,5,1))","v":""},null,null,null,null,null,null,null,null,null,null,{"$f":"IF(ISBLANK(入力２!I16),\"\",入力２!I16)","v":" "},{"$f":"作業表!F6","v":"　"}]
[null,null,null,null,null,null,null,null,null,{"$f":"IF(ISBLANK(入力２!I12),\"\",MID(入力２!I12,1,1))","v":""},{"$f":"IF(ISBLANK(入力２!I12),\"\",MID(入力２!I12,2,1))","v":""},{"$f":"IF(ISBLANK(入力２!I12),\"\",MID(入力２!I12,3,1))","v":""},{"$f":"IF(ISBLANK(入力２!I12),\"\",MID(入力２!I12,4,1))","v":""},{"$f":"IF(ISBLANK(入力２!I12),\"\",MID(入力２!I12,5,1))","v":""},"計",{"$f":"IF(ISBLANK(入力２!I15),\"\",入力２!I15)","v":""},null,null,"本",null,null,null,null,null,null,null,null,null,null,null,{"$f":"IF(ISBLANK(入力２!V16),\"\",\"(\"&入力２!V16&\")\")","v":""}]
[]
[null,"合理化の方策",null,null,null,null,null,null,null,"合理化の具体的な内容",null,null,null,null,null,null,null,null,null,null,null,null,null,null,null,null,null,null,"数　量",null,null,null,null,null,"合理化実施量"]
[null,"循環・再利用水量","循環・再利用装置の設置",null,null,null,null,null,null,"冷却塔（クーリングタワー）",null,null,null,null,null,null,null,null,null,null,null,null,null,null,null,null,null,null,{"$f":"IF(ISBLANK(入力４!G6),\"\",入力４!G6)","v":""},null,null,"台",null,null,{"$f":"IF(ISBLANK(入力４!I6),\"\",入力４!I6)","v":""},null,null,null,null,"㎥／年"]
[null,null,null,null,null,null,null,null,null,"ボイラー等のドレン水回収",null,null,null,null,null,null,null,null,null,null,null,null,null,null,null,null,null,null,{"$f":"IF(ISBLANK(入力４!G7),\"\",入力４!G7)","v":""},null,null,"台",null,null,{"$f":"IF(ISBLANK(入力４!I7),\"\",入力４!I7)","v":""},null,null,null,null,"㎥／年"]
[null,null,null,null,null,null,null,null,null,"洗浄用水等の循環・再利用",null,null,null,null,null,null,null,null,null,null,null,null,null,null,null,null,null,null,{"$f":"IF(ISBLANK(入力４!G8),\"\",入力４!G8)","v":""},null,null,"台",null,null,{"$f":"IF(ISBLANK(入力４!I8),\"\",入力４!I8)","v":""},null,null,null,null,"㎥／年"]
[null,null,null,null,null,null,null,null,null,"浴場水等の循環・再利用（プール・池等を含む。）",null,null,null,null,null,null,null,null,null,null,null,null,null,null,null,null,null,null,{"$f":"IF(ISBLANK(入力４!G9),\"\",入力４!G9)","v":""},null,null,"台",null,null,{"$f":"IF(ISBLANK(入力４!I9),IF(ISBLANK(入力４!I13),\"\",入力４!I13),入力４!I9)","v":""},null,null,null,null,"㎥／年"]
[null,null,null,null,null,null,null,null,null,{"$f":"IF(ISBLANK(入力４!E14),\"\",入力４!E14)","v":""},null,null,null,null,null,null,null,null,null,null,null,null,null,null,null,null,null,null,{"$f":"IF(ISBLANK(入力４!G14),\"\",入力４!G14)","v":""},null,null,"台",null,null,{"$f":"IF(ISBLANK(入力４!I14),\"\",入力４!I14)","v":""},null,null,null,null,"㎥／年"]
[null,null,null,null,null,null,null,null,null,{"$f":"IF(ISBLANK(入力４!E15),\"\",入力４!E15)","v":""},null,null,null,null,null,null,null,null,null,null,null,null,null,null,null,null,null,null,{"$f":"IF(ISBLANK(入力４!G15),\"\",入力４!G15)","v":""},null,null,"台",null,null,{"$f":"IF(ISBLANK(入力４!I15),\"\",入力４!I15)","v":""},null,null,null,null,"㎥／年"]
[null,null,"その他",null,null,null,null,null,null,"中水道設備",null,null,null,null,null,null,null,null,null,null,null,null,null,null,null,null,null,null,{"$f":"IF(ISBLANK(入力４!G16),\"\",入力４!G16)","v":""},null,null,"台",null,null,{"$f":"IF(ISBLANK(入力４!I16),\"\",入力４!I16)","v":""},null,null,null,null,"㎥／年"]
[null,null,null,null,null,null,null,null,null,{"$f":"IF(ISBLANK(入力４!E17),\"\",入力４!E17)","v":""},null,null,null,null,null,null,null,null,null,null,null,null,null,null,null,null,null,null,{"$f":"IF(ISBLANK(入力４!G17),\"\",入力４!G17)","v":""},null,null,"台",null,null,{"$f":"IF(ISBLANK(入力４!I17),\"\",入力４!I17)","v":""},null,null,null,null,"㎥／年"]
[null,null,null,null,null,null,null,null,null,{"$f":"IF(ISBLANK(入力４!E18),\"\",入力４!E18)","v":""},null,null,null,null,null,null,null,null,null,null,null,null,null,null,null,null,null,null,{"$f":"IF(ISBLANK(入力４!G18),\"\",入力４!G18)","v":""},null,null,"台",null,null,{"$f":"IF(ISBLANK(入力４!I18),\"\",入力４!I18)","v":""},null,null,null,null,"㎥／年"]
[null,null,"小　　　計　　　①",null,null,null,null,null,null,null,null,null,null,null,null,null,null,null,null,null,null,null,null,null,null,null,null,null,null,null,null,null,null,null,{"$f":"IF(ISBLANK(入力４!I19),\"\",入力４!I19)","v":""},null,null,null,null,"㎥／年"]
[null,"有効活用水量","節水機器の設置",null,null,null,null,null,null,"節水トイレ",null,null,null,null,null,null,null,null,null,null,null,null,null,null,null,null,null,null,{"$f":"IF(ISBLANK(入力４!G20),\"\",入力４!G20)","v":""},null,null,"箇所",null,null,{"$f":"IF(ISBLANK(入力４!I20),IF(ISBLANK(入力４!I25),\"\",入力４!I25),入力４!I20)","v":""},null,null,null,null,"㎥／年"]
[null,null,null,null,null,null,null,null,null,"節水コマ",null,null,null,null,null,null,null,null,null,null,null,null,null,null,null,null,null,null,{"$f":"IF(ISBLANK(入力４!G26),\"\",入力４!G26)","v":""},null,null,"栓",null,null,{"$f":"IF(ISBLANK(入力４!I26),IF(ISBLANK(入力４!I31),\"\",入力４!I31),入力４!I26)","v":""},null,null,null,null,"㎥／年"]
[null,null,null,null,null,null,null,null,null,{"$f":"IF(ISBLANK(入力４!E32),\"\",入力４!E32)","v":""},null,null,null,null,null,null,null,null,null,null,null,null,null,null,null,null,null,null,{"$f":"IF(ISBLANK(入力４!G32),\"\",入力４!G32)","v":""},null,null,{"$f":"IF(ISBLANK(入力４!H32),\"\",入力４!H32)","v":""},null,null,{"$f":"IF(ISBLANK(入力４!I32),\"\",入力４!I32)","v":""},null,null,null,null,"㎥／年"]
[null,null,"雨水利用設備の設置",null,null,null,null,null,null,{"$f":"IF(ISBLANK(入力４!E33),\"\",入力４!E33)","v":""},null,null,null,null,null,null,null,null,null,null,null,null,null,null,null,null,null,null,{"$f":"IF(ISBLANK(入力４!G33),\"\",入力４!G33)","v":""},null,null,{"$f":"IF(ISBLANK(入力４!H33),\"\",入力４!H33)","v":""},null,null,{"$f":"IF(ISBLANK(入力４!I33),\"\",入力４!I33)","v":""},null,null,null,null,"㎥／年"]
[null,null,null,null,null,null,null,null,null,{"$f":"IF(ISBLANK(入力４!E34),\"\",入力４!E34)","v":""},null,null,null,null,null,null,null,null,null,null,null,null,null,null,null,null,null,null,{"$f":"IF(ISBLANK(入力４!G6),\"\",入力４!G34)","v":""},null,null,{"$f":"IF(ISBLANK(入力４!H34),\"\",入力４!H34)","v":""},null,null,{"$f":"IF(ISBLANK(入力４!I34),\"\",入力４!I34)","v":""},null,null,null,null,"㎥／年"]
[null,null,null,null,null,null,null,null,null,{"$f":"IF(ISBLANK(入力４!E35),\"\",入力４!E35)","v":""},null,null,null,null,null,null,null,null,null,null,null,null,null,null,null,null,null,null,{"$f":"IF(ISBLANK(入力４!G35),\"\",入力４!G35)","v":""},null,null,{"$f":"IF(ISBLANK(入力４!H35),\"\",入力４!H35)","v":""},null,null,{"$f":"IF(ISBLANK(入力４!I35),\"\",入力４!I35)","v":""},null,null,null,null,"㎥／年"]
[null,null,"その他",null,null,null,null,null,null,{"$f":"IF(ISBLANK(入力４!E36),\"\",入力４!E36)","v":""},null,null,null,null,null,null,null,null,null,null,null,null,null,null,null,null,null,null,{"$f":"IF(ISBLANK(入力４!G36),\"\",入力４!G36)","v":""},null,null,{"$f":"IF(ISBLANK(入力４!H36),\"\",入力４!H36)","v":""},null,null,{"$f":"IF(ISBLANK(入力４!I36),\"\",入力４!I36)","v":""},null,null,null,null,"㎥／年"]
[null,null,null,null,null,null,null,null,null,{"$f":"IF(ISBLANK(入力４!E37),\"\",入力４!E37)","v":""},null,null,null,null,null,null,null,null,null,null,null,null,null,null,null,null,null,null,{"$f":"IF(ISBLANK(入力４!G37),\"\",入力４!G37)","v":""},null,null,{"$f":"IF(ISBLANK(入力４!H37),\"\",入力４!H37)","v":""},null,null,{"$f":"IF(ISBLANK(入力４!I37),\"\",入力４!I37)","v":""},null,null,null,null,"㎥／年"]
[null,null,null,null,null,null,null,null,null,{"$f":"IF(ISBLANK(入力４!E38),\"\",入力４!E38)","v":""},null,null,null,null,null,null,null,null,null,null,null,null,null,null,null,null,null,null,{"$f":"IF(ISBLANK(入力４!G38),\"\",入力４!G38)","v":""},null,null,{"$f":"IF(ISBLANK(入力４!H38),\"\",入力４!H38)","v":""},null,null,{"$f":"IF(ISBLANK(入力４!I38),\"\",入力４!I38)","v":""},null,null,null,null,"㎥／年"]
[null,null,"小　　　計　　　②",null,null,null,null,null,null,null,null,null,null,null,null,null,null,null,null,null,null,null,null,null,null,null,null,null,null,null,null,null,null,null,{"$f":"IF(ISBLANK(入力４!I39),\"\",入力４!I39)","v":""},null,null,null,null,"㎥／年"]
[null,"合理化計画量の合計（①＋②）",null,null,null,null,null,null,null,null,null,null,null,null,null,null,null,null,null,null,null,null,null,null,null,null,null,null,null,null,null,null,null,null,{"$f":"IF(ISBLANK(入力４!I40),\"\",入力４!I40)","v":""},null,null,null,null,"㎥／年"]
[null,"地下水採取量",null,null,null,null,null,null,null,"③",null,null,{"$f":"IF(ISBLANK(入力２!I9),\"\",入力２!I9)","v":""},null,null,null,null,null,null,null,"㎥／年",null,null,"上水道使用量　　④",null,null,null,null,null,null,null,null,null,null,{"$f":"IF(ISBLANK(入力４!I43),\"\",入力４!I43)","v":""},null,null,null,null,"㎥／年"]
[null,"水 の 循 環 率 ",null,null,null,null,null,null,null,null,null,null,null,null,null,null,null,null,null,null,null,null,null,"①÷（①＋③＋④）",null,null,null,null,null,null,null,null,null,null,{"$f":"IF(ISBLANK(入力４!I45),\"\",入力４!I45)","v":""},null,null,null,null,"％"]
[null,"特記事項",null,null,null,null,null,null,null,{"$f":"IF(ISBLANK(入力４!D47),\"\",入力４!D47)","v":""}]
[null,null,null,null,null,null,null,null,null,{"$f":"IF(ISBLANK(入力４!D48),\"\",入力４!D48)","v":""}]
[null,null,null,null,null,null,null,null,null,{"$f":"IF(ISBLANK(入力４!D49),\"\",入力４!D49)","v":""}]
[null,null,null,null,null,null,null,null,null,{"$f":"IF(ISBLANK(入力４!D50),\"\",入力４!D50)","v":""}]
[null,"備考　　1  記載欄が不足するときは、別紙（日本工業規格A4）を使用してください。"]
[null,"　　　  2  内容のわかる写真、図面、資料等があれば適宜添付してください。"]

{"sheet":"説明１","index":7,"n_rows":22,"n_cols":5,"rows_kept":22,"cut":false,"hidden":false,"merged":[]}
[]
[]
[]
[]
[]
[]
[null,null,"「合理化の具体的な内容及び合理化水量」の記載例"]
[]
[null,null,null,"【冷却塔の場合の合理化水量の算出例】"]
[]
[null,null,null,null,"冷却塔の規格が 15RT (冷凍トン) 、水量 195ℓ/分 の場合"]
[null,null,null,null,"補給水量は 2～10% 程度で運転 (仮に 5% と仮定)"]
[]
[]
[null,null,null,null,"循環水量  (㎥/h)  ＝15RT × (195ℓ/分/15RT) × 60分 ÷ 1000ℓ  ・・・ ①"]
[]
[null,null,null,null,"補給水量  (㎥/h)  ＝① × 0.05  ・・・ ②"]
[]
[null,null,null,null,"１時間当たり合理化水量 ＝ ① － ② ＝ ① － (① × 0.05 ) ＝ ① × 0.95"]
[]
[]
[null,null,null,null,"※詳細はメーカー等にお問い合わせ下さい。"]

{"sheet":"説明２","index":8,"n_rows":20,"n_cols":25,"rows_kept":20,"cut":false,"hidden":false,"merged":[]}
[]
[]
[]
[]
[]
[]
[null,null,"「水の循環率の計算方法について」"]
[]
[null,null,null,"　水の循環率については、次の式により計算して下さい（少数第２位を四捨五入）。"]
[null,null,null,"　なお、この場合、「循環・再利用水量の小計には、「有効活用水量の小計」は含めずに計算して"]
[null,null,null,"ください。ただし、雨水利用設備等で雨水を循環再利用している場合には、「循環・再利用水量の"]
[null,null,null,"小計」に含めて計算してください。"]
[]
[null,null,null,"水の循環率＝循環・再利用水量の小計÷（循環・再利用水量の小計＋地下水採取量＋上下水道使用量）"]
[]
[null,null,null," (計算例)"]
[null,null,null,"  循環装置の設置による節水量",null,null,null,null,null,null,null,null,null,null,null,null,null,null,null,null,null,null,null,null,"：10,000（㎥/年）"]
[null,null,null,"  節水トイレ・節水コマの設置による節水量",null,null,null,null,null,null,null,null,null,null,null,null,null,null,null,null,null,null,null,null,"： 1,500（㎥/年）"]
[null,null,null,"  合理化水量の合計は 11,500㎥/年であるが、水の循環率を計算する場合には、循環・再利用され"]
[null,null,null,"ている水量である 10,000㎥/年を用いる。"]

{"sheet":"コード","index":9,"n_rows":11,"n_cols":12,"rows_kept":11,"cut":false,"hidden":false,"merged":[]}
[null,null,"コード表"]
[]
[null,"合理化様式",null,null,null,"地下水の用途",null,null,null,"設置年度別節水量（節水トイレ）"]
[null,1,"07","地下水使用合理化計画書",null,1," ","　",null,1]
[null,2,"08","地下水使用合理化実施状況報告書",null,2,1,"農業用",null,2,6,"平成１８年度より前"]
[null,null,null,null,null,3,2,"水産養殖用",null,3,7,"平成１８年度以降"]
[null,null,null,null,null,4,3,"工業用"]
[null,null,null,null,null,5,4,"建築物用"]
[null,null,null,null,null,6,5,"水道用"]
[null,null,null,null,null,7,6,"家庭用"]
[null,null,null,null,null,8,7,"その他"]

{"sheet":"作業表","index":10,"n_rows":8,"n_cols":10,"rows_kept":8,"cut":false,"hidden":false,"merged":[]}
[]
[null,null,"設定表",null,null,null,null,null,"画面遷移"]
[]
[null,null,"項目名","検索値","返却コード","返却名称","説明",null,"選択項目","設定値"]
[null,null,"合理化様式",2,{"$f":"VLOOKUP(D5,コード!B4:D5,2,1)","v":"08"},{"$f":"VLOOKUP(D5,コード!B4:D5,3,1)","v":"地下水使用合理化実施状況報告書"},"様式番号",null,"合理化計画量算出方法",1]
[null,null,"地下水の用途",1,{"$f":"VLOOKUP(D6,コード!F4:H11,2,1)","v":" "},{"$f":"VLOOKUP(D6,コード!F4:H11,3,1)","v":"　"},"地下水の用途コード",null,"水の循環率計算方法",2]
[null,null,"節水トイレの設置年度(計画)",1,{"$f":"VLOOKUP(D7,コード!J4:L6,2,1)","v":0},{"$f":"VLOOKUP(D7,コード!J4:L5,3,1)","v":0},"節水トイレ設置年度別節水量"]
[null,null,"節水トイレの設置年度(報告)",1,{"$f":"VLOOKUP(D8,コード!J4:L6,2,1)","v":0},{"$f":"VLOOKUP(D8,コード!J4:L6,3,1)","v":0},"節水トイレ設置年度別節水量"]

{"sheet":"計算表","index":11,"n_rows":43,"n_cols":12,"rows_kept":43,"cut":false,"hidden":false,"merged":[]}
[null,"①　循環・再利用水量",null,null,null,"②　有効活用水量"]
[null,null,"冷却塔",{"$f":"入力３!I6","v":0},null,null,"節水機器その他１",{"$f":"入力３!I32","v":0},null,null,"合計",{"$f":"IF(AND(D25=\"なし\",H43=\"なし\"),\"\",IF(AND(D25=\"あり\",H43=\"あり\"),D23+H38,IF(D25=\"あり\",D23,H38)))","v":""}]
[null,null,"ドレン水",{"$f":"入力３!I7","v":0},null,null,"雨水利用設備１",{"$f":"入力３!I33","v":0}]
[null,null,"洗浄用水",{"$f":"入力３!I8","v":0},null,null,"雨水利用設備２",{"$f":"入力３!I34","v":0},null,"③","地下水採取量",{"$f":"入力２!I9","v":0}]
[null,null,"その他１",{"$f":"入力３!I14","v":0},null,null,"雨水利用設備３",{"$f":"入力３!I35","v":0}]
[null,null,"その他２",{"$f":"入力３!I15","v":0},null,null,"その他１",{"$f":"入力３!I36","v":0},null,"④","上水道使用量",{"$f":"入力３!I43","v":0}]
[null,null,"中水道設備",{"$f":"入力３!I16","v":0},null,null,"その他２",{"$f":"入力３!I37","v":0}]
[null,null,"その他３",{"$f":"入力３!I17","v":0},null,null,"その他３",{"$f":"入力３!I38","v":0},null,null,"水の循環率",{"$f":"IF(D25=\"なし\",\"\",IF(D23=0,0,D23/(D23+L4+L6)*100))","v":""}]
[null,null,"その他４",{"$f":"入力３!I18","v":0},null,null,null,null,null,null,"小数１位（四捨五入）",{"$f":"IF(D25=\"なし\",\"\",ROUND(L8,1))","v":""}]
[null,null,null,null,null,null,null,null,null,null,"表示値",{"$f":"L9","v":""}]
[null,"浴場水(手入力)","浴場水",{"$f":"入力３!I9","v":0},null,"節水トイレ(手入力)","節水トイレ",{"$f":"入力３!I20","v":0}]
[]
[null,"浴場水(計算)","循環量",{"$f":"入力３!I10","v":0},null,"節水トイレ(計算)","設置箇所",{"$f":"入力３!I21","v":0}]
[null,null,"稼働時間",{"$f":"入力３!I11","v":0},null,null,"使用回数",{"$f":"入力３!I22","v":0}]
[null,null,"営業日数",{"$f":"入力３!I12","v":0},null,null,"営業日数",{"$f":"入力３!I23","v":0}]
[null,null,"計算値",{"$f":"D13*60*D14*D15","v":0},null,null,"設置年度（節水量）",{"$f":"作業表!E7","v":0}]
[null,null,"数値(四捨五入)",{"$f":"ROUND(D16,0)","v":0},null,null,"計算値",{"$f":"H13*H14*H16/1000*H15","v":0}]
[null,null,"表示値",{"$f":"IF(AND(ISBLANK(入力３!I10),ISBLANK(入力３!I11),ISBLANK(入力３!I12))=TRUE,\"\",D17)","v":""},null,null,"数値(四捨五入)",{"$f":"ROUND(H17,0)","v":0}]
[null,null,null,null,null,null,"表示値",{"$f":"IF(AND(ISBLANK(入力３!I21),ISBLANK(入力３!I22),ISBLANK(入力３!I23))=TRUE,\"\",H18)","v":""}]
[null,null,"小計（手入力）",{"$f":"SUM(D2:D9,D11)","v":0}]
[null,null,"小計（計算）",{"$f":"SUM(D2:D9,D17)","v":0}]
[null,null,null,null,null,"節水コマ(手入力)","節水コマ",{"$f":"入力３!I26","v":0}]
[null,"①","小計表示値",{"$f":"IF(D25=\"なし\",\"\",IF(ISBLANK(入力３!I9),D21,D20))","v":""}]
[null,null,null,null,null,"節水コマ(計算)","設置箇所",{"$f":"入力３!I27","v":0}]
[null,null,"実施量の入力",{"$f":"IF(AND(ISBLANK(入力３!I6),ISBLANK(入力３!I7),ISBLANK(入力３!I8),ISBLANK(入力３!I9),ISBLANK(入力３!I10),ISBLANK(入力３!I11),ISBLANK(入力３!I12)),\"なし\",\"あり\")","v":"なし"},null,null,"使用回数",{"$f":"入力３!I28","v":0}]
[null,null,null,null,null,null,"使用時間",{"$f":"入力３!I29","v":0}]
[null,null,null,null,null,null,"営業日数",{"$f":"入力３!I30","v":0}]
[null,null,null,null,null,null,"計算値",{"$f":"H24*H25*H27/1000*H26","v":0}]
[null,null,null,null,null,null,"数値(四捨五入)",{"$f":"ROUND(H28,0)","v":0}]
[null,null,null,null,null,null,"表示値",{"$f":"IF(AND(ISBLANK(入力３!I27),ISBLANK(入力３!I28),ISBLANK(入力３!I29),ISBLANK(入力３!I30))=TRUE,\"\",H29)","v":""}]
[]
[]
[null,null,null,null,null,null,"小計（手入力）のみ",{"$f":"SUM(H2:H8,H11,H22)","v":0}]
[null,null,null,null,null,null,"小計（トイレ計算）",{"$f":"SUM(H2:H8,H19,H22)","v":0}]
[null,null,null,null,null,null,"小計（コマ計算）",{"$f":"SUM(H2:H8,H11,H30)","v":0}]
[null,null,null,null,null,null,"小計（両方計算）",{"$f":"SUM(H2:H8,H19,H30)","v":0}]
[]
[null,null,null,null,null,null,"小計表示値",{"$f":"IF(H43=\"なし\",\"\",IF(AND(H40=\"あり\",H41=\"あり\"),H33,IF(AND(H40=\"なし\",H41=\"なし\"),H36,IF(H40=\"なし\",H34,H35))))","v":""}]
[]
[null,null,null,null,null,null,"節水トイレ(手入力)",{"$f":"IF(ISBLANK(入力３!I20),\"なし\",\"あり\")","v":"なし"}]
[null,null,null,null,null,null,"節水コマ(手入力)",{"$f":"IF(ISBLANK(入力３!I26),\"なし\",\"あり\")","v":"なし"}]
[]
[null,null,null,null,null,null,"実施量の入力",{"$f":"IF(AND(ISBLANK(入力３!I20),ISBLANK(入力３!I21),ISBLANK(入力３!I22),ISBLANK(入力３!I23),ISBLANK(入力３!I26),ISBLANK(入力３!I27),ISBLANK(入力３!I28),ISBLANK(入力３!I29),ISBLANK(入力３!I30)*ISBLANK(入力３!I32)*ISBLANK(入力３!I33)*ISBLANK(入力３!I34)*ISBLANK(入力３!I35)*ISBLANK(入力３!I36)*ISBLANK(入力３!I37)*ISBLANK(入力３!I38)),\"なし\",\"あり\")","v":"なし"}]

{"sheet":"計算表２","index":12,"n_rows":43,"n_cols":12,"rows_kept":43,"cut":false,"hidden":false,"merged":[]}
[null,"①　循環・再利用水量",null,null,null,"②　有効活用水量"]
[null,null,"冷却塔",{"$f":"入力４!I6","v":0},null,null,"節水機器その他１",{"$f":"入力４!I32","v":0},null,null,"合計",{"$f":"IF(AND(D25=\"なし\",H43=\"なし\"),\"\",IF(AND(D25=\"あり\",H43=\"あり\"),D23+H38,IF(D25=\"あり\",D23,H38)))","v":""}]
[null,null,"ドレン水",{"$f":"入力４!I7","v":0},null,null,"雨水利用設備１",{"$f":"入力４!I33","v":0}]
[null,null,"洗浄用水",{"$f":"入力４!I8","v":0},null,null,"雨水利用設備２",{"$f":"入力４!I34","v":0},null,"③","地下水採取量",{"$f":"入力２!I9","v":0}]
[null,null,"その他１",{"$f":"入力４!I14","v":0},null,null,"雨水利用設備３",{"$f":"入力４!I35","v":0}]
[null,null,"その他２",{"$f":"入力４!I15","v":0},null,null,"その他１",{"$f":"入力４!I36","v":0},null,"④","上水道使用量",{"$f":"入力４!I43","v":0}]
[null,null,"中水道設備",{"$f":"入力４!I16","v":0},null,null,"その他２",{"$f":"入力４!I37","v":0}]
[null,null,"その他３",{"$f":"入力４!I17","v":0},null,null,"その他３",{"$f":"入力４!I38","v":0},null,null,"水の循環率",{"$f":"IF(D25=\"なし\",\"\",IF(D23=0,0,D23/(D23+L4+L6)*100))","v":""}]
[null,null,"その他４",{"$f":"入力４!I18","v":0},null,null,null,null,null,null,"小数１位（四捨五入）",{"$f":"IF(D25=\"なし\",\"\",ROUND(L8,1))","v":""}]
[null,null,null,null,null,null,null,null,null,null,"表示値",{"$f":"L9","v":""}]
[null,"浴場水(手入力)","浴場水",{"$f":"入力４!I9","v":0},null,"節水トイレ(手入力)","節水トイレ",{"$f":"入力４!I20","v":0}]
[]
[null,"浴場水(計算)","循環量",{"$f":"入力４!I10","v":0},null,"節水トイレ(計算)","設置箇所",{"$f":"入力４!I21","v":0}]
[null,null,"稼働時間",{"$f":"入力４!I11","v":0},null,null,"使用回数",{"$f":"入力４!I22","v":0}]
[null,null,"営業日数",{"$f":"入力４!I12","v":0},null,null,"営業日数",{"$f":"入力４!I23","v":0}]
[null,null,"計算値",{"$f":"D13*60*D14*D15","v":0},null,null,"設置年度（節水量）",{"$f":"作業表!E8","v":0}]
[null,null,"数値(四捨五入)",{"$f":"ROUND(D16,0)","v":0},null,null,"計算値",{"$f":"H13*H14*H16/1000*H15","v":0}]
[null,null,"表示値",{"$f":"IF(AND(ISBLANK(入力４!I10),ISBLANK(入力４!I11),ISBLANK(入力４!I12))=TRUE,\"\",D17)","v":""},null,null,"数値(四捨五入)",{"$f":"ROUND(H17,0)","v":0}]
[null,null,null,null,null,null,"表示値",{"$f":"IF(AND(ISBLANK(入力４!I21),ISBLANK(入力４!I22),ISBLANK(入力４!I23))=TRUE,\"\",H18)","v":""}]
[null,null,"小計（手入力）",{"$f":"SUM(D2:D9,D11)","v":0}]
[null,null,"小計（計算）",{"$f":"SUM(D2:D9,D17)","v":0}]
[null,null,null,null,null,"節水コマ(手入力)","節水コマ",{"$f":"入力４!I26","v":0}]
[null,"①","小計表示値",{"$f":"IF(D25=\"なし\",\"\",IF(ISBLANK(入力４!I9),D21,D20))","v":""}]
[null,null,null,null,null,"節水コマ(計算)","設置箇所",{"$f":"入力４!I27","v":0}]
[null,null,"実施量の入力",{"$f":"IF(AND(ISBLANK(入力４!I6),ISBLANK(入力４!I7),ISBLANK(入力４!I8),ISBLANK(入力４!I9),ISBLANK(入力４!I10),ISBLANK(入力４!I11),ISBLANK(入力４!I12)),\"なし\",\"あり\")","v":"なし"},null,null,"使用回数",{"$f":"入力４!I28","v":0}]
[null,null,null,null,null,null,"使用時間",{"$f":"入力４!I29","v":0}]
[null,null,null,null,null,null,"営業日数",{"$f":"入力４!I30","v":0}]
[null,null,null,null,null,null,"計算値",{"$f":"H24*H25*H27/1000*H26","v":0}]
[null,null,null,null,null,null,"数値(四捨五入)",{"$f":"ROUND(H28,0)","v":0}]
[null,null,null,null,null,null,"表示値",{"$f":"IF(AND(ISBLANK(入力４!I27),ISBLANK(入力４!I28),ISBLANK(入力４!I29),ISBLANK(入力４!I30))=TRUE,\"\",H29)","v":""}]
[]
[]
[null,null,null,null,null,null,"小計（手入力）のみ",{"$f":"SUM(H2:H8,H11,H22)","v":0}]
[null,null,null,null,null,null,"小計（トイレ計算）",{"$f":"SUM(H2:H8,H19,H22)","v":0}]
[null,null,null,null,null,null,"小計（コマ計算）",{"$f":"SUM(H2:H8,H11,H30)","v":0}]
[null,null,null,null,null,null,"小計（両方計算）",{"$f":"SUM(H2:H8,H19,H30)","v":0}]
[]
[null,null,null,null,null,null,"小計表示値",{"$f":"IF(H43=\"なし\",\"\",IF(AND(H40=\"あり\",H41=\"あり\"),H33,IF(AND(H40=\"なし\",H41=\"なし\"),H36,IF(H40=\"なし\",H34,H35))))","v":""}]
[]
[null,null,null,null,null,null,"節水トイレ(手入力)",{"$f":"IF(ISBLANK(入力４!I20),\"なし\",\"あり\")","v":"なし"}]
[null,null,null,null,null,null,"節水コマ(手入力)",{"$f":"IF(ISBLANK(入力４!I26),\"なし\",\"あり\")","v":"なし"}]
[]
[null,null,null,null,null,null,"実施量の入力",{"$f":"IF(AND(ISBLANK(入力４!I20),ISBLANK(入力４!I21),ISBLANK(入力４!I22),ISBLANK(入力４!I23),ISBLANK(入力４!I26),ISBLANK(入力４!I27),ISBLANK(入力４!I28),ISBLANK(入力４!I29),ISBLANK(入力４!I30)*ISBLANK(入力４!I32)*ISBLANK(入力４!I33)*ISBLANK(入力４!I34)*ISBLANK(入力４!I35)*ISBLANK(入力４!I36)*ISBLANK(入力４!I37)*ISBLANK(入力４!I38)),\"なし\",\"あり\")","v":"なし"}]